{"text_format":"1","workbook":"xlsx","n_sheets":5,"sheets":["شباط","Sheet5","Sheet4","Sheet3","Sheet2"],"not_rendered":{"charts":0,"images":0,"macros":1,"external_links":0,"defined_names":1,"comments":0,"pivot_tables":0},"unopened":[],"bounds":{"document_bytes":16777216,"sheet_cells":100000,"rows_first":2000,"rows_last":500,"rows_between":2000,"halvings":0,"cell_chars":16384,"cell_head_chars":4096},"cells_cut":0,"cells_raw":0,"read":"whole","date_system":"1900"}

{"sheet":"شباط","index":0,"n_rows":13,"n_cols":26,"rows_kept":13,"cut":false,"hidden":false,"merged":[]}
[null,null,null,null,null,null,null,null,null,null,null,null,null,null,null,null,null,null,null,null,null,null,null,null," شباط "]
[null,""]
["الرقم","الإسم","هاتف","رقم الزبون","تاريخ الإشتراك","رقم العلبة","المنطقة","الشارع","البناية","الطابق","العدد","كارد/1","كارد/2","كارد/3","كارد/4","كارد/5","كارد/6","كارد/7","كارد/8","نظام تشفير","إشتراك شهري","إنتقال المتأخرات","المبلغ المطلوب","تبويب","الشهر","مدفوع / غير"]
[101,"أحمد زين الدين","03/256489",1522,"2020-01-14",403,"سيران","العام","فتح الله",2,1,7139852,null,null,null,null,null,null,null,10000,10000,60000,{"$f":"SUM(T4+U4+V4)","v":80000},{"$f":"IF(G4=\"بشامون\",\"تعميم إلى المشتركين الكرام : إن هذا البدل هو مقابل كلفة النقل وصيانة الشبكة والأقنية المرمزة.  / لا يشمل حقوق إعادة بث محطات BEIN  /  يستحق اشتراك إضافي على كل مشترك لديه ثلاثة ريسيفرات أو أكثر. /   للمراجعة فقط على هذا الرقم حصراً : 71/290215\",IF(G4=\"دوحة عرمون\",\"تعميم إلى المشتركين الكرام : إن هذا البدل هو مقابل كلفة النقل وصيانة الشبكة والأقنية المرمزة.  / لا يشمل حقوق إعادة بث محطات BEIN  /  يستحق اشتراك إضافي على كل مشترك لديه ثلاثة ريسيفرات أو أكثر. /   للمراجعة فقط على هذا الرقم حصراً : 76/994293\",IF(G4=\"عرمون\",\"تعميم إلى المشتركين الكرام : إن هذا البدل هو مقابل كلفة النقل وصيانة الشبكة والأقنية المرمزة.  / لا يشمل حقوق إعادة بث محطات BEIN  /  يستحق اشتراك إضافي على كل مشترك لديه ثلاثة ريسيفرات أو أكثر. /   للمراجعة فقط على هذا الرقم حصراً : 03/835420\")))","v":false},{"$f":"$Y$1","v":" شباط "},"✕ "]
[102,"أحمد  محمد ","03/256486",8000,"15/01/2020",402,"الروشة","العام","فتح الله",5,2,7139853,5698748,null,null,null,null,null,null,10000,100000,110000,220000,{"$f":"IF(G5=\"بشامون\",\"تعميم إلى المشتركين الكرام : إن هذا البدل هو مقابل كلفة النقل وصيانة الشبكة والأقنية المرمزة.  / لا يشمل حقوق إعادة بث محطات BEIN  /  يستحق اشتراك إضافي على كل مشترك لديه ثلاثة ريسيفرات أو أكثر. /   للمراجعة فقط على هذا الرقم حصراً : 71/290215\",IF(G5=\"دوحة عرمون\",\"تعميم إلى المشتركين الكرام : إن هذا البدل هو مقابل كلفة النقل وصيانة الشبكة والأقنية المرمزة.  / لا يشمل حقوق إعادة بث محطات BEIN  /  يستحق اشتراك إضافي على كل مشترك لديه ثلاثة ريسيفرات أو أكثر. /   للمراجعة فقط على هذا الرقم حصراً : 76/994293\",IF(G5=\"عرمون\",\"تعميم إلى المشتركين الكرام : إن هذا البدل هو مقابل كلفة النقل وصيانة الشبكة والأقنية المرمزة.  / لا يشمل حقوق إعادة بث محطات BEIN  /  يستحق اشتراك إضافي على كل مشترك لديه ثلاثة ريسيفرات أو أكثر. /   للمراجعة فقط على هذا الرقم حصراً : 03/835420\")))","v":false}," شباط ","✓"]
[103," محمود ياسر ","03/256487",6000,"15/01/2020",402,"الحمرا","العام","فتح الله",8,1,7139854,null,null,null,null,null,null,null,10000,50000,60000,120000,null,{"$f":"$Y$1","v":" شباط "},"✓"]
[null,null,null,null,null,null,null,null,null,null,null,null,null,null,null,null,null,null,null,null,null,null,{"$f":"SUM(T7+U7+V7)","v":0},null," شباط ","✓"]
[null,null,null,null,null,null,null,null,null,null,null,null,null,null,null,null,null,null,null,null,null,null,0,null," شباط ","✓"]
[null,null,null,null,null,null,null,null,null,null,null,null,null,null,null,null,null,null,null,null,null,null,0,null," شباط ","✓"]
[null,null,null,null,null,null,null,null,null,null,null,null,null,null,null,null,null,null,null,null,null,null,0,null," شباط ","✓"]
[null,null,null,null,null,null,null,null,null,null,null,null,null,null,null,null,null,null,null,null,null,null,0,null," شباط ","✓"]
[null,null,null,null,null,null,null,null,null,null,null,null,null,null,null,null,null,null,null,null,null,null,0,null," شباط ","✓"]
[null,null,null,null,null,null,null,null,null,null,null,null,null,null,null,null,null,null,null,null,null,null,0,null," شباط ","✓"]

{"sheet":"Sheet5","index":1,"n_rows":7,"n_cols":5,"rows_kept":7,"cut":false,"hidden":false,"merged":[]}
[]
[]
[]
["المناطق"]
["الحمرا",null,null,null,"✓"]
["الروشة"]
["سيران",null,null,null,"✕ "]

{"sheet":"Sheet4","index":2,"n_rows":15,"n_cols":26,"rows_kept":15,"cut":false,"hidden":false,"merged":[[0,24,1,24]]}
[null,null,null,null,null,null,null,null,null,null,null,null,null,null,null,null,null,null,null,null,null,null,null,null," شباط "]
[null,""]
["الرقم","الإسم","هاتف","رقم الزبون","تاريخ الإشتراك","رقم العلبة","المنطقة","الشارع","البناية","الطابق","العدد","كارد/1","كارد/2","كارد/3","كارد/4","كارد/5","كارد/6","كارد/7","كارد/8","نظام تشفير","إشتراك شهري","إنتقال المتأخرات","المبلغ المطلوب","تبويب","الشهر","مدفوع / غير"]
[{"$f":"Table1[[#This Row],[الرقم]]","v":101},{"$f":"Table1[[#This Row],[الإسم]]","v":"أحمد زين الدين"},{"$f":"Table1[[#This Row],[هاتف]]","v":"03/256489"},{"$f":"Table1[[#This Row],[رقم الزبون]]","v":1522},{"$f":"Table1[[#This Row],[تاريخ الإشتراك]]","v":43844},{"$f":"Table1[[#This Row],[رقم العلبة]]","v":403},{"$f":"Table1[[#This Row],[المنطقة]]","v":"سيران"},{"$f":"Table1[[#This Row],[الشارع]]","v":"العام"},{"$f":"Table1[[#This Row],[البناية]]","v":"فتح الله"},{"$f":"Table1[[#This Row],[الطابق]]","v":2},{"$f":"Table1[[#This Row],[العدد]]","v":1},{"$f":"Table1[[#This Row],[كارد/1]]","v":7139852},{"$f":"Table1[[#This Row],[كارد/2]]","v":0},{"$f":"Table1[[#This Row],[كارد/3]]","v":0},{"$f":"Table1[[#This Row],[كارد/4]]","v":0},{"$f":"Table1[[#This Row],[كارد/5]]","v":0},{"$f":"Table1[[#This Row],[كارد/6]]","v":0},{"$f":"Table1[[#This Row],[كارد/7]]","v":0},{"$f":"Table1[[#This Row],[كارد/8]]","v":0},{"$f":"Table1[[#This Row],[نظام تشفير]]","v":10000},{"$f":"Table1[[#This Row],[إشتراك شهري]]","v":10000},{"$f":"Table1[[#This Row],[إنتقال المتأخرات]]","v":60000},{"$f":"Table1[[#This Row],[المبلغ المطلوب]]","v":80000},{"$f":"IF(G5=\"الروشة\",\" للمراجعة فقط على هذا الرقم حصراً : 71/290215\")","v":" للمراجعة فقط على هذا الرقم حصراً : 71/290215"},{"$f":"$Y$1","v":" شباط "},"✕ "]
[{"$f":"Table1[[#This Row],[الرقم]]","v":102},{"$f":"Table1[[#This Row],[الإسم]]","v":"أحمد  محمد "},{"$f":"Table1[[#This Row],[هاتف]]","v":"03/256486"},{"$f":"Table1[[#This Row],[رقم الزبون]]","v":8000},{"$f":"Table1[[#This Row],[تاريخ الإشتراك]]","v":"15/01/2020"},{"$f":"Table1[[#This Row],[رقم العلبة]]","v":402},{"$f":"Table1[[#This Row],[المنطقة]]","v":"الروشة"},{"$f":"Table1[[#This Row],[الشارع]]","v":"العام"},{"$f":"Table1[[#This Row],[البناية]]","v":"فتح الله"},{"$f":"Table1[[#This Row],[الطابق]]","v":5},{"$f":"Table1[[#This Row],[العدد]]","v":2},{"$f":"Table1[[#This Row],[كارد/1]]","v":7139853},{"$f":"Table1[[#This Row],[كارد/2]]","v":5698748},{"$f":"Table1[[#This Row],[كارد/3]]","v":0},{"$f":"Table1[[#This Row],[كارد/4]]","v":0},{"$f":"Table1[[#This Row],[كارد/5]]","v":0},{"$f":"Table1[[#This Row],[كارد/6]]","v":0},{"$f":"Table1[[#This Row],[كارد/7]]","v":0},{"$f":"Table1[[#This Row],[كارد/8]]","v":0},{"$f":"Table1[[#This Row],[نظام تشفير]]","v":10000},{"$f":"Table1[[#This Row],[إشتراك شهري]]","v":100000},{"$f":"Table1[[#This Row],[إنتقال المتأخرات]]","v":110000},{"$f":"Table1[[#This Row],[المبلغ المطلوب]]","v":220000},false," شباط ","✓"]
[{"$f":"Table1[[#This Row],[الرقم]]","v":103},{"$f":"Table1[[#This Row],[الإسم]]","v":" محمود ياسر "},{"$f":"Table1[[#This Row],[هاتف]]","v":"03/256487"},{"$f":"Table1[[#This Row],[رقم الزبون]]","v":6000},{"$f":"Table1[[#This Row],[تاريخ الإشتراك]]","v":"15/01/2020"},{"$f":"Table1[[#This Row],[رقم العلبة]]","v":402},{"$f":"Table1[[#This Row],[المنطقة]]","v":"الحمرا"},{"$f":"Table1[[#This Row],[الشارع]]","v":"العام"},{"$f":"Table1[[#This Row],[البناية]]","v":"فتح الله"},{"$f":"Table1[[#This Row],[الطابق]]","v":8},{"$f":"Table1[[#This Row],[العدد]]","v":1},{"$f":"Table1[[#This Row],[كارد/1]]","v":7139854},{"$f":"Table1[[#This Row],[كارد/2]]","v":0},{"$f":"Table1[[#This Row],[كارد/3]]","v":0},{"$f":"Table1[[#This Row],[كارد/4]]","v":0},{"$f":"Table1[[#This Row],[كارد/5]]","v":0},{"$f":"Table1[[#This Row],[كارد/6]]","v":0},{"$f":"Table1[[#This Row],[كارد/7]]","v":0},{"$f":"Table1[[#This Row],[كارد/8]]","v":0},{"$f":"Table1[[#This Row],[نظام تشفير]]","v":10000},{"$f":"Table1[[#This Row],[إشتراك شهري]]","v":50000},{"$f":"Table1[[#This Row],[إنتقال المتأخرات]]","v":60000},{"$f":"Table1[[#This Row],[المبلغ المطلوب]]","v":120000},false," شباط ","✓"]
[{"$f":"Table1[[#This Row],[الرقم]]","v":0},{"$f":"Table1[[#This Row],[الإسم]]","v":0},{"$f":"Table1[[#This Row],[هاتف]]","v":0},{"$f":"Table1[[#This Row],[رقم الزبون]]","v":0},{"$f":"Table1[[#This Row],[تاريخ الإشتراك]]","v":0},{"$f":"Table1[[#This Row],[رقم العلبة]]","v":0},{"$f":"Table1[[#This Row],[المنطقة]]","v":0},{"$f":"Table1[[#This Row],[الشارع]]","v":0},{"$f":"Table1[[#This Row],[البناية]]","v":0},{"$f":"Table1[[#This Row],[الطابق]]","v":0},{"$f":"Table1[[#This Row],[العدد]]","v":0},{"$f":"Table1[[#This Row],[كارد/1]]","v":0},{"$f":"Table1[[#This Row],[كارد/2]]","v":0},{"$f":"Table1[[#This Row],[كارد/3]]","v":0},{"$f":"Table1[[#This Row],[كارد/4]]","v":0},{"$f":"Table1[[#This Row],[كارد/5]]","v":0},{"$f":"Table1[[#This Row],[كارد/6]]","v":0},{"$f":"Table1[[#This Row],[كارد/7]]","v":0},{"$f":"Table1[[#This Row],[كارد/8]]","v":0},{"$f":"Table1[[#This Row],[نظام تشفير]]","v":0},{"$f":"Table1[[#This Row],[إشتراك شهري]]","v":0},{"$f":"Table1[[#This Row],[إنتقال المتأخرات]]","v":0},{"$f":"Table1[[#This Row],[المبلغ المطلوب]]","v":0},{"$f":"IF(G8=\"الروشة\",\" للمراجعة فقط على هذا الرقم حصراً : 71/290215\")","v":false}," شباط ","✓"]
[{"$f":"Table1[[#This Row],[الرقم]]","v":0},{"$f":"Table1[[#This Row],[الإسم]]","v":0},{"$f":"Table1[[#This Row],[هاتف]]","v":0},{"$f":"Table1[[#This Row],[رقم الزبون]]","v":0},{"$f":"Table1[[#This Row],[تاريخ الإشتراك]]","v":0},{"$f":"Table1[[#This Row],[رقم العلبة]]","v":0},{"$f":"Table1[[#This Row],[المنطقة]]","v":0},{"$f":"Table1[[#This Row],[الشارع]]","v":0},{"$f":"Table1[[#This Row],[البناية]]","v":0},{"$f":"Table1[[#This Row],[الطابق]]","v":0},{"$f":"Table1[[#This Row],[العدد]]","v":0},{"$f":"Table1[[#This Row],[كارد/1]]","v":0},{"$f":"Table1[[#This Row],[كارد/2]]","v":0},{"$f":"Table1[[#This Row],[كارد/3]]","v":0},{"$f":"Table1[[#This Row],[كارد/4]]","v":0},{"$f":"Table1[[#This Row],[كارد/5]]","v":0},{"$f":"Table1[[#This Row],[كارد/6]]","v":0},{"$f":"Table1[[#This Row],[كارد/7]]","v":0},{"$f":"Table1[[#This Row],[كارد/8]]","v":0},{"$f":"Table1[[#This Row],[نظام تشفير]]","v":0},{"$f":"Table1[[#This Row],[إشتراك شهري]]","v":0},{"$f":"Table1[[#This Row],[إنتقال المتأخرات]]","v":0},{"$f":"Table1[[#This Row],[المبلغ المطلوب]]","v":0},false," شباط ","✓"]
[{"$f":"Table1[[#This Row],[الرقم]]","v":0},{"$f":"Table1[[#This Row],[الإسم]]","v":0},{"$f":"Table1[[#This Row],[هاتف]]","v":0},{"$f":"Table1[[#This Row],[رقم الزبون]]","v":0},{"$f":"Table1[[#This Row],[تاريخ الإشتراك]]","v":0},{"$f":"Table1[[#This Row],[رقم العلبة]]","v":0},{"$f":"Table1[[#This Row],[المنطقة]]","v":0},{"$f":"Table1[[#This Row],[الشارع]]","v":0},{"$f":"Table1[[#This Row],[البناية]]","v":0},{"$f":"Table1[[#This Row],[الطابق]]","v":0},{"$f":"Table1[[#This Row],[العدد]]","v":0},{"$f":"Table1[[#This Row],[كارد/1]]","v":0},{"$f":"Table1[[#This Row],[كارد/2]]","v":0},{"$f":"Table1[[#This Row],[كارد/3]]","v":0},{"$f":"Table1[[#This Row],[كارد/4]]","v":0},{"$f":"Table1[[#This Row],[كارد/5]]","v":0},{"$f":"Table1[[#This Row],[كارد/6]]","v":0},{"$f":"Table1[[#This Row],[كارد/7]]","v":0},{"$f":"Table1[[#This Row],[كارد/8]]","v":0},{"$f":"Table1[[#This Row],[نظام تشفير]]","v":0},{"$f":"Table1[[#This Row],[إشتراك شهري]]","v":0},{"$f":"Table1[[#This Row],[إنتقال المتأخرات]]","v":0},{"$f":"Table1[[#This Row],[المبلغ المطلوب]]","v":0},false," شباط ","✓"]
[{"$f":"Table1[[#This Row],[الرقم]]","v":0},{"$f":"Table1[[#This Row],[الإسم]]","v":0},{"$f":"Table1[[#This Row],[هاتف]]","v":0},{"$f":"Table1[[#This Row],[رقم الزبون]]","v":0},{"$f":"Table1[[#This Row],[تاريخ الإشتراك]]","v":0},{"$f":"Table1[[#This Row],[رقم العلبة]]","v":0},{"$f":"Table1[[#This Row],[المنطقة]]","v":0},{"$f":"Table1[[#This Row],[الشارع]]","v":0},{"$f":"Table1[[#This Row],[البناية]]","v":0},{"$f":"Table1[[#This Row],[الطابق]]","v":0},{"$f":"Table1[[#This Row],[العدد]]","v":0},{"$f":"Table1[[#This Row],[كارد/1]]","v":0},{"$f":"Table1[[#This Row],[كارد/2]]","v":0},{"$f":"Table1[[#This Row],[كارد/3]]","v":0},{"$f":"Table1[[#This Row],[كارد/4]]","v":0},{"$f":"Table1[[#This Row],[كارد/5]]","v":0},{"$f":"Table1[[#This Row],[كارد/6]]","v":0},{"$f":"Table1[[#This Row],[كارد/7]]","v":0},{"$f":"Table1[[#This Row],[كارد/8]]","v":0},{"$f":"Table1[[#This Row],[نظام تشفير]]","v":0},{"$f":"Table1[[#This Row],[إشتراك شهري]]","v":0},{"$f":"Table1[[#This Row],[إنتقال المتأخرات]]","v":0},{"$f":"Table1[[#This Row],[المبلغ المطلوب]]","v":0},false," شباط ","✓"]
[{"$f":"Table1[[#This Row],[الرقم]]","v":0},{"$f":"Table1[[#This Row],[الإسم]]","v":0},{"$f":"Table1[[#This Row],[هاتف]]","v":0},{"$f":"Table1[[#This Row],[رقم الزبون]]","v":0},{"$f":"Table1[[#This Row],[تاريخ الإشتراك]]","v":0},{"$f":"Table1[[#This Row],[رقم العلبة]]","v":0},{"$f":"Table1[[#This Row],[المنطقة]]","v":0},{"$f":"Table1[[#This Row],[الشارع]]","v":0},{"$f":"Table1[[#This Row],[البناية]]","v":0},{"$f":"Table1[[#This Row],[الطابق]]","v":0},{"$f":"Table1[[#This Row],[العدد]]","v":0},{"$f":"Table1[[#This Row],[كارد/1]]","v":0},{"$f":"Table1[[#This Row],[كارد/2]]","v":0},{"$f":"Table1[[#This Row],[كارد/3]]","v":0},{"$f":"Table1[[#This Row],[كارد/4]]","v":0},{"$f":"Table1[[#This Row],[كارد/5]]","v":0},{"$f":"Table1[[#This Row],[كارد/6]]","v":0},{"$f":"Table1[[#This Row],[كارد/7]]","v":0},{"$f":"Table1[[#This Row],[كارد/8]]","v":0},{"$f":"Table1[[#This Row],[نظام تشفير]]","v":0},{"$f":"Table1[[#This Row],[إشتراك شهري]]","v":0},{"$f":"Table1[[#This Row],[إنتقال المتأخرات]]","v":0},{"$f":"Table1[[#This Row],[المبلغ المطلوب]]","v":0},false," شباط ","✓"]
[{"$f":"Table1[[#This Row],[الرقم]]","v":0},{"$f":"Table1[[#This Row],[الإسم]]","v":0},{"$f":"Table1[[#This Row],[هاتف]]","v":0},{"$f":"Table1[[#This Row],[رقم الزبون]]","v":0},{"$f":"Table1[[#This Row],[تاريخ الإشتراك]]","v":0},{"$f":"Table1[[#This Row],[رقم العلبة]]","v":0},{"$f":"Table1[[#This Row],[المنطقة]]","v":0},{"$f":"Table1[[#This Row],[الشارع]]","v":0},{"$f":"Table1[[#This Row],[البناية]]","v":0},{"$f":"Table1[[#This Row],[الطابق]]","v":0},{"$f":"Table1[[#This Row],[العدد]]","v":0},{"$f":"Table1[[#This Row],[كارد/1]]","v":0},{"$f":"Table1[[#This Row],[كارد/2]]","v":0},{"$f":"Table1[[#This Row],[كارد/3]]","v":0},{"$f":"Table1[[#This Row],[كارد/4]]","v":0},{"$f":"Table1[[#This Row],[كارد/5]]","v":0},{"$f":"Table1[[#This Row],[كارد/6]]","v":0},{"$f":"Table1[[#This Row],[كارد/7]]","v":0},{"$f":"Table1[[#This Row],[كارد/8]]","v":0},{"$f":"Table1[[#This Row],[نظام تشفير]]","v":0},{"$f":"Table1[[#This Row],[إشتراك شهري]]","v":0},{"$f":"Table1[[#This Row],[إنتقال المتأخرات]]","v":0},{"$f":"Table1[[#This Row],[المبلغ المطلوب]]","v":0},false," شباط ","✓"]
[{"$f":"Table1[[#This Row],[الرقم]]","v":0},{"$f":"Table1[[#This Row],[الإسم]]","v":0},{"$f":"Table1[[#This Row],[هاتف]]","v":0},{"$f":"Table1[[#This Row],[رقم الزبون]]","v":0},{"$f":"Table1[[#This Row],[تاريخ الإشتراك]]","v":0},{"$f":"Table1[[#This Row],[رقم العلبة]]","v":0},{"$f":"Table1[[#This Row],[المنطقة]]","v":0},{"$f":"Table1[[#This Row],[الشارع]]","v":0},{"$f":"Table1[[#This Row],[البناية]]","v":0},{"$f":"Table1[[#This Row],[الطابق]]","v":0},{"$f":"Table1[[#This Row],[العدد]]","v":0},{"$f":"Table1[[#This Row],[كارد/1]]","v":0},{"$f":"Table1[[#This Row],[كارد/2]]","v":0},{"$f":"Table1[[#This Row],[كارد/3]]","v":0},{"$f":"Table1[[#This Row],[كارد/4]]","v":0},{"$f":"Table1[[#This Row],[كارد/5]]","v":0},{"$f":"Table1[[#This Row],[كارد/6]]","v":0},{"$f":"Table1[[#This Row],[كارد/7]]","v":0},{"$f":"Table1[[#This Row],[كارد/8]]","v":0},{"$f":"Table1[[#This Row],[نظام تشفير]]","v":0},{"$f":"Table1[[#This Row],[إشتراك شهري]]","v":0},{"$f":"Table1[[#This Row],[إنتقال المتأخرات]]","v":0},{"$f":"Table1[[#This Row],[المبلغ المطلوب]]","v":0},{"$error":"#VALUE!"}," شباط ","✓"]
[{"$f":"Table1[[#This Row],[الرقم]]","v":{"$error":"#VALUE!"}},{"$f":"Table1[[#This Row],[الإسم]]","v":{"$error":"#VALUE!"}},{"$f":"Table1[[#This Row],[هاتف]]","v":{"$error":"#VALUE!"}},{"$f":"Table1[[#This Row],[رقم الزبون]]","v":{"$error":"#VALUE!"}},{"$f":"Table1[[#This Row],[تاريخ الإشتراك]]","v":{"$error":"#VALUE!"}},{"$f":"Table1[[#This Row],[رقم العلبة]]","v":{"$error":"#VALUE!"}},{"$f":"Table1[[#This Row],[المنطقة]]","v":{"$error":"#VALUE!"}},{"$f":"Table1[[#This Row],[الشارع]]","v":{"$error":"#VALUE!"}},{"$f":"Table1[[#This Row],[البناية]]","v":{"$error":"#VALUE!"}},{"$f":"Table1[[#This Row],[الطابق]]","v":{"$error":"#VALUE!"}},{"$f":"Table1[[#This Row],[العدد]]","v":{"$error":"#VALUE!"}},{"$f":"Table1[[#This Row],[كارد/1]]","v":{"$error":"#VALUE!"}},{"$f":"Table1[[#This Row],[كارد/2]]","v":{"$error":"#VALUE!"}},{"$f":"Table1[[#This Row],[كارد/3]]","v":{"$error":"#VALUE!"}},{"$f":"Table1[[#This Row],[كارد/4]]","v":{"$error":"#VALUE!"}},{"$f":"Table1[[#This Row],[كارد/5]]","v":{"$error":"#VALUE!"}},{"$f":"Table1[[#This Row],[كارد/6]]","v":{"$error":"#VALUE!"}},{"$f":"Table1[[#This Row],[كارد/7]]","v":{"$error":"#VALUE!"}},{"$f":"Table1[[#This Row],[كارد/8]]","v":{"$error":"#VALUE!"}},{"$f":"Table1[[#This Row],[نظام تشفير]]","v":{"$error":"#VALUE!"}},{"$f":"Table1[[#This Row],[إشتراك شهري]]","v":{"$error":"#VALUE!"}},{"$f":"Table1[[#This Row],[إنتقال المتأخرات]]","v":{"$error":"#VALUE!"}},{"$f":"Table1[[#This Row],[المبلغ المطلوب]]","v":{"$error":"#VALUE!"}},{"$error":"#VALUE!"}," شباط ","✓"]
[{"$f":"Table1[[#This Row],[الرقم]]","v":{"$error":"#VALUE!"}},{"$f":"Table1[[#This Row],[الإسم]]","v":{"$error":"#VALUE!"}},{"$f":"Table1[[#This Row],[هاتف]]","v":{"$error":"#VALUE!"}},{"$f":"Table1[[#This Row],[رقم الزبون]]","v":{"$error":"#VALUE!"}},{"$f":"Table1[[#This Row],[تاريخ الإشتراك]]","v":{"$error":"#VALUE!"}},{"$f":"Table1[[#This Row],[رقم العلبة]]","v":{"$error":"#VALUE!"}},{"$f":"Table1[[#This Row],[المنطقة]]","v":{"$error":"#VALUE!"}},{"$f":"Table1[[#This Row],[الشارع]]","v":{"$error":"#VALUE!"}},{"$f":"Table1[[#This Row],[البناية]]","v":{"$error":"#VALUE!"}},{"$f":"Table1[[#This Row],[الطابق]]","v":{"$error":"#VALUE!"}},{"$f":"Table1[[#This Row],[العدد]]","v":{"$error":"#VALUE!"}},{"$f":"Table1[[#This Row],[كارد/1]]","v":{"$error":"#VALUE!"}},{"$f":"Table1[[#This Row],[كارد/2]]","v":{"$error":"#VALUE!"}},{"$f":"Table1[[#This Row],[كارد/3]]","v":{"$error":"#VALUE!"}},{"$f":"Table1[[#This Row],[كارد/4]]","v":{"$error":"#VALUE!"}},{"$f":"Table1[[#This Row],[كارد/5]]","v":{"$error":"#VALUE!"}},{"$f":"Table1[[#This Row],[كارد/6]]","v":{"$error":"#VALUE!"}},{"$f":"Table1[[#This Row],[كارد/7]]","v":{"$error":"#VALUE!"}},{"$f":"Table1[[#This Row],[كارد/8]]","v":{"$error":"#VALUE!"}},{"$f":"Table1[[#This Row],[نظام تشفير]]","v":{"$error":"#VALUE!"}},{"$f":"Table1[[#This Row],[إشتراك شهري]]","v":{"$error":"#VALUE!"}},{"$f":"Table1[[#This Row],[إنتقال المتأخرات]]","v":{"$error":"#VALUE!"}},{"$f":"Table1[[#This Row],[المبلغ المطلوب]]","v":{"$error":"#VALUE!"}},{"$f":"IF(#REF!=\"الروشة\",\" للمراجعة فقط على هذا الرقم حصراً : 71/290215\")","v":{"$error":"#REF!"}}," شباط ","✓"]

{"sheet":"Sheet3","index":3,"n_rows":0,"n_cols":0,"rows_kept":0,"cut":false,"hidden":false,"merged":[]}

{"sheet":"Sheet2","index":4,"n_rows":0,"n_cols":0,"rows_kept":0,"cut":false,"hidden":false,"merged":[]}